bitfinex/quotes_BTCUSD_20221001
["timestamp","ask_amount","ask_price","bid_price","bid_amount"]
[1664666983349,2.11958046,19313.0,19312.0,0.25929117]
[1664666984000,2.19858046,19313.0,19312.0,0.25929117]
[1664666985249,2.11958046,19313.0,19312.0,0.25929117]
[1664666986142,1.89858046,19313.0,19312.0,0.25929117]
[1664666986608,2.19858046,19313.0,19312.0,0.25929117]
[1664666987128,2.55581246,19313.0,19312.0,0.25929117]
[1664666987350,2.11958046,19313.0,19312.0,0.25929117]
[1664666988013,2.19858046,19313.0,19312.0,0.25929117]
[1664666989371,2.11958046,19313.0,19312.0,0.25929117]
[1664666990023,2.19858046,19313.0,19312.0,0.25929117]
[1664666991139,2.11958046,19313.0,19312.0,0.25929117]
[1664666991989,2.19858046,19313.0,19312.0,0.25929117]
[1664666992676,2.5164091,19313.0,19312.0,0.25929117]
[1664666992894,2.8736411,19313.0,19312.0,0.25929117]
[1664666993121,2.5164091,19313.0,19312.0,0.25929117]
[1664666993330,2.4374091,19313.0,19312.0,0.25929117]
[1664666994024,2.5164091,19313.0,19312.0,0.25929117]
[1664666994462,2.19858046,19313.0,19312.0,0.25929117]
[1664666994720,2.5164091,19313.0,19312.0,0.25929117]
[1664666995412,2.11958046,19313.0,19312.0,0.25929117]
[1664666996069,2.19858046,19313.0,19312.0,0.25929117]
[1664666996294,1.38684902,19313.0,19312.0,0.25929117]
[1664666997456,1.30784902,19313.0,19312.0,0.25929117]
[1664666998145,1.38684902,19313.0,19312.0,0.25929117]
[1664666999277,1.30784902,19313.0,19312.0,0.25929117]
[1664667000178,1.38684902,19313.0,19312.0,0.25929117]
[1664667000841,0.86906402,19313.0,19312.0,0.25929117]
[1664667001305,0.79006402,19313.0,19312.0,0.25929117]
[1664667001532,0.12934357,19313.0,19312.0,0.25929117]
[1664667001959,0.20834357,19313.0,19312.0,0.25929117]
[1664667003005,0.82446757,19313.0,19312.0,0.25929117]
[1664667003221,0.38823557,19313.0,19312.0,0.25929117]
[1664667004034,0.46723557,19313.0,19312.0,0.25929117]
[1664667004514,0.82446757,19313.0,19312.0,0.25929117]
[1664667004737,0.46723557,19313.0,19312.0,0.25929117]
[1664667004952,0.82446757,19313.0,19312.0,0.25929117]
[1664667005295,0.38823557,19313.0,19312.0,0.25929117]
[1664667006254,0.46723557,19313.0,19312.0,0.25929117]
[1664667007380,0.38823557,19313.0,19312.0,0.25929117]
[1664667008021,0.46723557,19313.0,19312.0,0.25929117]
[1664667008733,0.20834357,19313.0,19312.0,0.25929117]
[1664667009393,0.00322856,19313.0,19312.0,0.25929117]
[1664667009983,0.08222856,19313.0,19312.0,0.25929117]
[1664667011794,0.00322856,19313.0,19312.0,0.25929117]
[1664667012257,0.00622856,19313.0,19312.0,0.32129117]
[1664667013373,0.00322856,19313.0,19312.0,0.25929117]
[1664667014034,0.00622856,19313.0,19312.0,0.32129117]
[1664667015329,0.00322856,19313.0,19312.0,0.25929117]
[1664667016224,0.00622856,19313.0,19312.0,0.32129117]
[1664667017213,0.00322856,19313.0,19312.0,0.25929117]
[1664667018084,0.00622856,19313.0,19312.0,0.32129117]
[1664667019256,0.00322856,19313.0,19312.0,0.25929117]
[1664667020058,0.00622856,19313.0,19312.0,0.32129117]
[1664667021492,0.00322856,19313.0,19312.0,0.25929117]
[1664667022131,0.00622856,19313.0,19312.0,0.32129117]
[1664667023441,0.00322856,19313.0,19312.0,0.25929117]
[1664667024206,0.00622856,19313.0,19312.0,0.32129117]
[1664667025301,0.00322856,19313.0,19312.0,0.25929117]
[1664667026170,0.00622856,19313.0,19312.0,0.32129117]
[1664667027447,0.00322856,19313.0,19312.0,0.25929117]
[1664667028138,0.00622856,19313.0,19312.0,0.32129117]
[1664667029457,0.00322856,19313.0,19312.0,0.25929117]
[1664667030237,0.00622856,19313.0,19312.0,0.32129117]
[1664667031294,0.00322856,19313.0,19312.0,0.25929117]
[1664667032174,0.00622856,19313.0,19312.0,0.32129117]
[1664667033246,0.00622856,19313.0,19312.0,0.25929117]
[1664667033455,0.00322856,19313.0,19312.0,0.25929117]
[1664667034164,0.13567456,19313.0,19312.0,0.32129117]
[1664667035806,0.48990656,19313.0,19312.0,0.25929117]
[1664667036025,0.00322856,19313.0,19312.0,0.25929117]
[1664667036255,0.00622856,19313.0,19312.0,0.32129117]
[1664667036471,0.13567456,19313.0,19312.0,0.32129117]
[1664667036862,0.13567456,19313.0,19312.0,0.32418148]
[1664667037430,0.13267456,19313.0,19312.0,0.26218148]
[1664667038220,0.13567456,19313.0,19312.0,0.32418148]
[1664667038464,0.00622856,19313.0,19312.0,0.32418148]
[1664667039514,0.00312087,19313.0,19312.0,0.26218148]
[1664667040111,0.00612087,19313.0,19312.0,0.32418148]
[1664667040338,0.13556687,19313.0,19312.0,0.32418148]
[1664667041439,0.13256687,19313.0,19312.0,0.26218148]
[1664667042236,0.13556687,19313.0,19312.0,0.32418148]
[1664667044659,0.39445887,19313.0,19312.0,0.32418148]
[1664667045513,0.39445887,19313.0,19312.0,0.26218148]
[1664667045514,0.39145887,19313.0,19312.0,0.26218148]
[1664667046294,0.39445887,19313.0,19312.0,0.32418148]
[1664667047347,0.39145887,19313.0,19312.0,0.26218148]
[1664667048315,0.39445887,19313.0,19312.0,0.32418148]
[1664667049380,0.39145887,19313.0,19312.0,0.26218148]
[1664667049840,0.13256687,19313.0,19312.0,0.26218148]
[1664667050253,0.13556687,19313.0,19312.0,0.32418148]
[1664667051697,0.13256687,19313.0,19312.0,0.26218148]
[1664667052198,0.13556687,19313.0,19312.0,0.32418148]
[1664667054338,0.13856687,19313.0,19312.0,0.38618148]
[1664667054821,0.49579887,19313.0,19312.0,0.38618148]
[1664667055156,0.13256687,19313.0,19312.0,0.26218148]
[1664667056221,0.13556687,19313.0,19312.0,0.32418148]
[1664667056952,0.49279887,19313.0,19312.0,0.32418148]
[1664667057192,0.13556687,19313.0,19312.0,0.32418148]
[1664667057636,0.13256687,19313.0,19312.0,0.26218148]
[1664667058287,0.13556687,19313.0,19312.0,0.32418148]
[1664667059935,0.13256687,19313.0,19312.0,0.26218148]
[1664667060380,0.13556687,19313.0,19312.0,0.32418148]
[1664667061554,0.13256687,19313.0,19312.0,0.26218148]
[1664667062470,0.13556687,19313.0,19312.0,0.32418148]
[1664667063654,0.74869087,19313.0,19312.0,0.26218148]
[1664667063883,0.74869087,19313.0,19312.0,0.26206497]
[1664667063884,0.39145887,19313.0,19312.0,0.26206497]
[1664667064332,0.39445887,19313.0,19312.0,0.32406497]
[1664667065689,0.39145887,19313.0,19312.0,0.26206497]
[1664667066370,0.39445887,19313.0,19312.0,0.32406497]
[1664667067742,0.39145887,19313.0,19312.0,0.26206497]
[1664667067968,0.13256687,19313.0,19312.0,0.26206497]
[1664667068431,0.13556687,19313.0,19312.0,0.32406497]
[1664667069846,0.13256687,19313.0,19312.0,0.32406497]
[1664667070097,0.13256687,19313.0,19312.0,0.26206497]
[1664667070317,0.13556687,19313.0,19312.0,0.32406497]
[1664667070862,0.00612087,19313.0,19312.0,0.32406497]
[1664667071421,0.00612087,19313.0,19312.0,0.26206497]
[1664667071638,0.00312087,19313.0,19312.0,0.26206497]
[1664667072277,0.00612087,19313.0,19312.0,0.32406497]
[1664667073653,0.00312087,19313.0,19312.0,0.26206497]
[1664667074387,0.00612087,19313.0,19312.0,0.32406497]
[1664667075659,0.00312087,19313.0,19312.0,0.26206497]
[1664667076353,0.00612087,19313.0,19312.0,0.32406497]
[1664667077015,0.00612087,19313.0,19312.0,0.31488337]
[1664667077590,0.00312087,19313.0,19312.0,0.25288337]
[1664667078277,0.00612087,19313.0,19312.0,0.31488337]
[1664667078487,0.00612087,19313.0,19312.0,0.30988337]
[1664667079886,0.00312087,19313.0,19312.0,0.24788337]
[1664667080322,0.00312087,19313.0,19312.0,0.31288337]
[1664667080470,0.00312087,19313.0,19312.0,0.67011537]
[1664667080898,0.00312087,19313.0,19312.0,0.98794401]
[1664667081110,0.00312087,19313.0,19312.0,0.67011537]
[1664667081570,0.00312087,19313.0,19312.0,0.60511537]
[1664667082069,0.00312087,19313.0,19312.0,0.24788337]
[1664667082308,0.00312087,19313.0,19312.0,0.67011537]
[1664667083450,0.00312087,19313.0,19312.0,0.60511537]
[1664667084274,0.00312087,19313.0,19312.0,0.67011537]
[1664667085583,0.00312087,19313.0,19312.0,0.60511537]
[1664667085796,0.00312087,19313.0,19312.0,0.24788337]
[1664667086272,0.00312087,19313.0,19312.0,0.60511537]
[1664667086451,0.00312087,19313.0,19312.0,0.67011537]
[1664667087547,0.00312087,19313.0,19312.0,0.60511537]
[1664667088388,0.36035287,19313.0,19312.0,0.31288337]
[1664667088640,0.00312087,19313.0,19312.0,0.31288337]
[1664667088866,0.00312087,19313.0,19312.0,0.67011537]
[1664667089772,0.00312087,19313.0,19312.0,0.60511537]
[1664667090463,0.00312087,19313.0,19312.0,0.67011537]
[1664667090682,0.00312087,19313.0,19312.0,0.31288337]
[1664667091160,0.00312087,19313.0,19312.0,0.67011537]
[1664667091620,0.00312087,19313.0,19312.0,0.24788337]
[1664667091826,0.00312087,19313.0,19312.0,0.60511537]
[1664667092593,0.00312087,19313.0,19312.0,0.67011537]
[1664667094100,0.00312087,19313.0,19312.0,0.60511537]
[1664667094538,0.00312087,19313.0,19312.0,0.31288337]
[1664667094718,0.00312087,19313.0,19312.0,0.67011537]
[1664667095656,0.00312087,19313.0,19312.0,0.24788337]
[1664667095918,0.00312087,19313.0,19312.0,0.60511537]
[1664667096606,0.00312087,19313.0,19312.0,0.67011537]
[1664667097019,0.00312087,19313.0,19312.0,0.31288337]
[1664667097620,0.00312087,19313.0,19312.0,0.24788337]
[1664667097837,0.00312087,19313.0,19312.0,0.60511537]
[1664667098281,0.00312087,19313.0,19312.0,0.24788337]
[1664667098494,0.00312087,19313.0,19312.0,0.31288337]
[1664667099631,0.00312087,19313.0,19312.0,0.24788337]
[1664667100315,0.00312087,19313.0,19312.0,0.31288337]
[1664667101738,0.00312087,19313.0,19312.0,0.24788337]
[1664667102426,0.00312087,19313.0,19312.0,0.31288337]
[1664667103811,0.00312087,19313.0,19312.0,0.24788337]
[1664667104473,0.00312087,19313.0,19312.0,0.31288337]
[1664667105908,0.00312087,19313.0,19312.0,0.24788337]
[1664667106618,0.00312087,19313.0,19312.0,0.31288337]
[1664667107515,0.00312087,19313.0,19312.0,0.67011537]
[1664667107768,0.00312087,19313.0,19312.0,0.60511537]
[1664667107995,0.00312087,19313.0,19312.0,0.24788337]
[1664667108448,0.00312087,19313.0,19312.0,0.31288337]
[1664667109540,0.00312087,19313.0,19312.0,0.67011537]
[1664667109766,0.00312087,19313.0,19312.0,0.24788337]
[1664667110216,0.00312087,19313.0,19312.0,0.60511537]
[1664667110439,0.00312087,19313.0,19312.0,0.31288337]
[1664667110959,0.00312087,19313.0,19312.0,0.67011537]
[1664667111501,0.00312087,19313.0,19312.0,0.31288337]
[1664667111781,0.00312087,19313.0,19312.0,0.24788337]
[1664667112249,0.45765287,19313.0,19312.0,0.24788337]
[1664667112461,0.45765287,19313.0,19312.0,0.31288337]
[1664667112675,0.00312087,19313.0,19312.0,0.31288337]
[1664667113820,0.00312087,19313.0,19312.0,0.24788337]
[1664667114307,0.13256687,19313.0,19312.0,0.24788337]
[1664667114535,0.13256687,19313.0,19312.0,0.31288337]
[1664667115850,0.13256687,19313.0,19312.0,0.24788337]
[1664667116400,0.13256687,19313.0,19312.0,0.31288337]
[1664667117679,0.13256687,19313.0,19312.0,0.24788337]
[1664667118598,0.13256687,19313.0,19312.0,0.31288337]
[1664667119245,0.48979887,19313.0,19312.0,0.31288337]
[1664667119508,0.13256687,19313.0,19312.0,0.31288337]
[1664667119741,0.13256687,19313.0,19312.0,0.24788337]
[1664667120502,0.13256687,19313.0,19312.0,0.31288337]
[1664667121915,0.13256687,19313.0,19312.0,0.24788337]
[1664667122589,0.13256687,19313.0,19312.0,0.31288337]
[1664667123926,0.13256687,19313.0,19312.0,0.24788337]
[1664667124610,0.13256687,19313.0,19312.0,0.31288337]
[1664667125683,0.13256687,19313.0,19312.0,0.24788337]
[1664667126618,0.13256687,19313.0,19312.0,0.31288337]
[1664667126810,0.39145887,19313.0,19312.0,0.31288337]
[1664667127735,0.39145887,19313.0,19312.0,0.24788337]
[1664667128623,0.39145887,19313.0,19312.0,0.31288337]
[1664667129824,0.39145887,19313.0,19312.0,0.24788337]
[1664667130509,0.39145887,19313.0,19312.0,0.31288337]
[1664667131724,0.39145887,19313.0,19312.0,0.24788337]
[1664667132553,0.39145887,19313.0,19312.0,0.31288337]
[1664667132776,0.74869087,19313.0,19312.0,0.31288337]
[1664667133126,0.39145887,19313.0,19312.0,0.31288337]
[1664667133780,0.39145887,19313.0,19312.0,0.24788337]
[1664667134576,0.39145887,19313.0,19312.0,0.31288337]
[1664667135664,0.39145887,19313.0,19312.0,0.24788337]
[1664667136610,0.39145887,19313.0,19312.0,0.31288337]
[1664667136832,0.74869087,19313.0,19312.0,0.31288337]
[1664667137088,0.39145887,19313.0,19312.0,0.31288337]
[1664667137759,0.39145887,19313.0,19312.0,0.24788337]
[1664667138205,0.74869087,19313.0,19312.0,0.24788337]
[1664667138432,0.39145887,19313.0,19312.0,0.24788337]
[1664667138659,0.39145887,19313.0,19312.0,0.31288337]
[1664667139968,0.39145887,19313.0,19312.0,0.24788337]
[1664667140508,0.39145887,19313.0,19312.0,0.31288337]
[1664667141635,1.56647587,19313.0,19312.0,0.31288337]
[1664667141844,1.20924387,19313.0,19312.0,0.24788337]
[1664667142554,1.20924387,19313.0,19312.0,0.26588337]
[1664667142555,1.28124387,19313.0,19312.0,0.26588337]
[1664667143855,1.20924387,19313.0,19312.0,0.24788337]
[1664667144622,1.28124387,19313.0,19312.0,0.26588337]
[1664667145955,1.20924387,19313.0,19312.0,0.24788337]
[1664667146569,1.28124387,19313.0,19312.0,0.26588337]
[1664667147782,1.20924387,19313.0,19312.0,0.24788337]
[1664667148793,1.28124387,19313.0,19312.0,0.26588337]
[1664667149817,1.20924387,19313.0,19312.0,0.24788337]
[1664667150251,0.90924387,19313.0,19312.0,0.24788337]
[1664667150649,0.46345887,19313.0,19312.0,0.26588337]
[1664667152162,0.39145887,19313.0,19312.0,0.24788337]
[1664667152600,0.46345887,19313.0,19312.0,0.26588337]
[1664667153831,0.39145887,19313.0,19312.0,0.24788337]
[1664667154481,0.39145887,19313.0,19312.0,0.26588337]
[1664667154742,0.39145887,19313.0,19312.0,0.69674384]
[1664667154743,0.46345887,19313.0,19312.0,0.69674384]
[1664667156018,0.39145887,19313.0,19312.0,0.67874384]
[1664667156688,0.46345887,19313.0,19312.0,0.69674384]
[1664667157976,0.39145887,19313.0,19312.0,0.67874384]
[1664667158764,0.46345887,19313.0,19312.0,0.69674384]
[1664667159991,0.39145887,19313.0,19312.0,0.67874384]
[1664667160652,0.46345887,19313.0,19312.0,0.69674384]
[1664667161856,0.39145887,19313.0,19312.0,0.67874384]
[1664667162547,0.46345887,19313.0,19312.0,0.69674384]
[1664667164009,0.39145887,19313.0,19312.0,0.67874384]
[1664667164738,0.46345887,19313.0,19312.0,0.69674384]
[1664667165719,0.46345887,19313.0,19312.0,0.26588337]
[1664667165929,0.39145887,19313.0,19312.0,0.24788337]
[1664667166650,0.46345887,19313.0,19312.0,0.26588337]
[1664667168215,0.39145887,19313.0,19312.0,0.24788337]
[1664667168653,0.46345887,19313.0,19312.0,0.26588337]
[1664667170140,0.39145887,19313.0,19312.0,0.24788337]
[1664667170786,0.46345887,19313.0,19312.0,0.26588337]
[1664667171906,0.39145887,19313.0,19312.0,0.24788337]
[1664667172727,0.46345887,19313.0,19312.0,0.26588337]
[1664667174237,0.39145887,19313.0,19312.0,0.24788337]
[1664667174803,0.46345887,19313.0,19312.0,0.26588337]
[1664667175886,0.39145887,19313.0,19312.0,0.24788337]
[1664667176670,0.20456687,19313.0,19312.0,0.26588337]
[1664667177803,0.56179887,19313.0,19312.0,0.26588337]
[1664667178019,0.39145887,19313.0,19312.0,0.24788337]
[1664667178845,0.46345887,19313.0,19312.0,0.26588337]
[1664667179860,0.39145887,19313.0,19312.0,0.24788337]
[1664667180698,0.46345887,19313.0,19312.0,0.26588337]
[1664667181934,0.39145887,19313.0,19312.0,0.24788337]
[1664667182728,0.46345887,19313.0,19312.0,0.26588337]
[1664667183912,0.46345887,19313.0,19312.0,0.24788337]
[1664667184106,0.39145887,19313.0,19312.0,0.24788337]
[1664667184792,0.46345887,19313.0,19312.0,0.26588337]
[1664667185945,0.39145887,19313.0,19312.0,0.24788337]
[1664667186857,0.46345887,19313.0,19312.0,0.26588337]
[1664667187853,0.39145887,19313.0,19312.0,0.24788337]
[1664667188504,0.13256687,19313.0,19312.0,0.24788337]
[1664667188714,0.20456687,19313.0,19312.0,0.26588337]
[1664667190122,0.13256687,19313.0,19312.0,0.24788337]
[1664667190718,0.20456687,19313.0,19312.0,0.26588337]
[1664667191962,0.13256687,19313.0,19312.0,0.24788337]
[1664667192862,0.20456687,19313.0,19312.0,0.26588337]
[1664667193995,0.13256687,19313.0,19312.0,0.24788337]
[1664667194767,0.20456687,19313.0,19312.0,0.26588337]
[1664667196029,0.13256687,19313.0,19312.0,0.24788337]
[1664667196970,0.20456687,19313.0,19312.0,0.26588337]
[1664667198016,0.13256687,19313.0,19312.0,0.24788337]
[1664667198839,0.13256687,19313.0,19312.0,0.31288337]
[1664667200106,0.13256687,19313.0,19312.0,0.24788337]
[1664667200734,0.00312087,19313.0,19312.0,0.24788337]
[1664667200896,0.00312087,19313.0,19312.0,0.31288337]
[1664667202169,0.00312087,19313.0,19312.0,0.24788337]
[1664667202705,0.00312087,19313.0,19312.0,0.31288337]
[1664667204025,0.00312087,19313.0,19312.0,0.15158337]
[1664667204363,0.16358087,19313.0,19312.0,0.15158337]
[1664667204581,0.52081287,19313.0,19312.0,0.15158337]
[1664667204816,0.52081287,19313.0,19312.0,0.21658337]
[1664667204817,0.00312087,19313.0,19312.0,0.21658337]
[1664667205043,0.13256687,19313.0,19312.0,0.21658337]
[1664667206419,0.13256687,19313.0,19312.0,0.15158337]
[1664667206857,0.13256687,19313.0,19312.0,0.21658337]
[1664667207982,0.13256687,19313.0,19312.0,0.15158337]
[1664667208828,0.13256687,19313.0,19312.0,0.21658337]
[1664667210191,0.13256687,19313.0,19312.0,0.15158337]
[1664667210762,0.13256687,19313.0,19312.0,0.21658337]
[1664667212127,0.13256687,19313.0,19312.0,0.15158337]
[1664667212737,0.48979887,19313.0,19312.0,0.15158337]
[1664667212950,0.48979887,19313.0,19312.0,0.21658337]
[1664667213169,0.13256687,19313.0,19312.0,0.21658337]
[1664667214082,0.13256687,19313.0,19312.0,0.15158337]
[1664667214759,0.13256687,19313.0,19312.0,0.21658337]
[1664667215867,0.48979887,19313.0,19312.0,0.21658337]
[1664667216285,0.13256687,19313.0,19312.0,0.15158337]
[1664667216975,0.13256687,19313.0,19312.0,0.21658337]
[1664667217420,0.74869087,19313.0,19312.0,0.21658337]
[1664667217876,0.39145887,19313.0,19312.0,0.21658337]
[1664667218423,0.39145887,19313.0,19312.0,0.15158337]
[1664667218643,0.69145887,19313.0,19312.0,0.15158337]
[1664667218875,0.69145887,19313.0,19312.0,0.21658337]
[1664667219027,0.39145887,19313.0,19312.0,0.21658337]
[1664667219243,0.69145887,19313.0,19312.0,0.21658337]
[1664667220076,0.69145887,19313.0,19312.0,0.15158337]
[1664667220829,0.69145887,19313.0,19312.0,0.21658337]
[1664667221422,0.39145887,19313.0,19312.0,0.21658337]
[1664667222236,0.39145887,19313.0,19312.0,0.15158337]
[1664667222802,0.39145887,19313.0,19312.0,0.21658337]
[1664667224105,0.39145887,19313.0,19312.0,0.15158337]
[1664667225137,0.39145887,19313.0,19312.0,0.21658337]
[1664667226270,0.39145887,19313.0,19312.0,0.15158337]
[1664667227049,0.39145887,19313.0,19312.0,0.21658337]
[1664667228182,0.39145887,19313.0,19312.0,0.15158337]
[1664667228830,0.39145887,19313.0,19312.0,0.21658337]
[1664667230079,0.39145887,19313.0,19312.0,0.15158337]
[1664667230967,0.39145887,19313.0,19312.0,0.21658337]
[1664667232095,0.39145887,19313.0,19312.0,0.15158337]
[1664667233082,0.39145887,19313.0,19312.0,0.21658337]
[1664667234274,0.39145887,19313.0,19312.0,0.15158337]
[1664667234955,0.39145887,19313.0,19312.0,0.21658337]
[1664667236278,0.39145887,19313.0,19312.0,0.15158337]
[1664667236950,0.39145887,19313.0,19312.0,0.21658337]
[1664667238207,0.39145887,19313.0,19312.0,0.15158337]
[1664667239181,0.39145887,19313.0,19312.0,0.21658337]
[1664667240251,0.39145887,19313.0,19312.0,0.15158337]
[1664667240822,0.13256687,19313.0,19312.0,0.15158337]
[1664667241032,0.13256687,19313.0,19312.0,0.21658337]
[1664667241967,0.00312087,19313.0,19312.0,0.21658337]
[1664667242203,0.00312087,19313.0,19312.0,0.15158337]
[1664667242967,0.00312087,19313.0,19312.0,0.21658337]
[1664667243297,0.00304887,19313.0,19312.0,0.21658337]
[1664667244176,0.00304887,19313.0,19312.0,0.15158337]
[1664667245128,0.00304887,19313.0,19312.0,0.21658337]
[1664667245749,0.36028087,19313.0,19312.0,0.21658337]
[1664667245966,0.00304887,19313.0,19312.0,0.21658337]
[1664667246187,0.44048087,19313.0,19312.0,0.15158337]
[1664667246395,0.36028087,19313.0,19312.0,0.15158337]
[1664667246574,0.00304887,19313.0,19312.0,0.15158337]
[1664667246792,0.13249487,19313.0,19312.0,0.15158337]
[1664667247010,0.48972687,19313.0,19312.0,0.21658337]
[1664667247225,0.13249487,19313.0,19312.0,0.21658337]
[1664667248285,0.13249487,19313.0,19312.0,0.15158337]
[1664667249189,0.13249487,19313.0,19312.0,0.21658337]
[1664667250221,0.13249487,19313.0,19312.0,0.15158337]
[1664667251091,0.00304887,19313.0,19312.0,0.62578394]
[1664667251683,0.36028087,19313.0,19312.0,0.62578394]
[1664667251930,0.00304887,19313.0,19312.0,0.62578394]
[1664667252360,0.00304887,19313.0,19312.0,0.56078394]
[1664667253159,0.00304887,19313.0,19312.0,0.62578394]
[1664667254234,0.00304887,19313.0,19312.0,0.56078394]
[1664667255140,0.00304887,19313.0,19312.0,0.62578394]
[1664667256338,0.00304887,19313.0,19312.0,0.56078394]
[1664667257060,0.00304887,19313.0,19312.0,0.62578394]
[1664667258380,0.00304887,19313.0,19312.0,0.56078394]
[1664667259045,0.00304887,19313.0,19312.0,0.62578394]
[1664667260457,0.00304887,19313.0,19312.0,0.56078394]
[1664667261028,0.00304887,19313.0,19312.0,0.62578394]
[1664667261476,0.00246141,19313.0,19312.0,0.62578394]
[1664667262467,0.00246141,19313.0,19312.0,0.56078394]
[1664667262694,0.00246141,19313.0,19312.0,1.27735471]
[1664667262898,0.00246141,19313.0,19312.0,2.19951044]
[1664667263126,0.00246141,19313.0,19312.0,2.34051044]
[1664667263337,0.00246141,19313.0,19312.0,2.24051044]
[1664667263464,0.00246141,19313.0,19312.0,1.56607438]
[1664667263687,0.00246141,19313.0,19312.0,1.92330638]
[1664667263908,0.00246141,19313.0,19312.0,1.66440038]
[1664667264351,0.00246141,19313.0,19312.0,1.30716838]
[1664667264645,0.00246141,19313.0,19312.0,1.26616838]
[1664667264867,0.00246141,19313.0,19312.0,1.62340038]
[1664667265090,0.00246141,19313.0,19312.0,1.34516838]
[1664667266345,0.00246141,19313.0,19312.0,1.26616838]
[1664667266972,0.00246141,19313.0,19312.0,1.34516838]
[1664667267199,0.00246141,19313.0,19312.0,1.70240038]
[1664667267415,0.00246141,19313.0,19312.0,1.34516838]
[1664667268485,0.00246141,19313.0,19312.0,1.62340038]
[1664667268700,0.00246141,19313.0,19312.0,1.26616838]
[1664667269167,0.00246141,19313.0,19312.0,1.21571538]
[1664667269849,0.00246141,19313.0,19312.0,1.34516838]
[1664667270342,0.00246141,19313.0,19312.0,1.26616838]
[1664667271082,0.00246141,19313.0,19312.0,1.34516838]
[1664667272505,0.00246141,19313.0,19312.0,1.26616838]
[1664667272726,0.35969341,19313.0,19312.0,1.13671538]
[1664667273196,0.00246141,19313.0,19312.0,1.21571538]
[1664667274334,0.00246141,19313.0,19312.0,1.13671538]
[1664667275109,0.00246141,19313.0,19312.0,1.21571538]
[1664667276634,0.00246141,19313.0,19312.0,1.13671538]
[1664667277159,0.00246141,19313.0,19312.0,1.21571538]
[1664667278439,0.00246141,19313.0,19312.0,1.13671538]
[1664667279324,0.00246141,19313.0,19312.0,1.21571538]
[1664667280307,0.00246141,19313.0,19312.0,1.13671538]
[1664667281159,0.00246141,19313.0,19312.0,1.21571538]
[1664667282377,0.00246141,19313.0,19312.0,1.45391944]
[1664667282587,0.00246141,19313.0,19312.0,1.13671538]
[1664667283055,0.00246141,19313.0,19312.0,1.81115144]
[1664667283270,0.00246141,19313.0,19312.0,1.88815144]
[1664667283477,0.00246141,19313.0,19312.0,1.53091944]
[1664667283690,0.00246141,19313.0,19312.0,1.21371538]
[1664667284338,0.00246141,19313.0,19312.0,1.13671538]
[1664667285070,0.00246141,19313.0,19312.0,1.26616838]
[1664667285363,0.00246141,19313.0,19312.0,1.34316838]
[1664667286444,0.00246141,19313.0,19312.0,1.26616838]
[1664667287250,0.00246141,19313.0,19312.0,1.34316838]
[1664667287962,0.00246141,19313.0,19312.0,1.70040038]
[1664667288176,0.00246141,19313.0,19312.0,1.34316838]
[1664667288400,0.00246141,19313.0,19312.0,1.62340038]
[1664667289009,0.12707641,19314.0,19313.0,0.05]
[1664667289417,0.12707641,19314.0,19313.0,0.05289031]
[1664667289618,0.12707641,19314.0,19313.0,0.00289031]
[1664667291165,0.12707641,19314.0,19313.0,0.07289031]
[1664667292463,0.12707641,19314.0,19313.0,0.00289031]
[1664667293291,0.12707641,19314.0,19313.0,0.07289031]
[1664667294077,0.25651541,19314.0,19313.0,0.07289031]
[1664667294555,0.25651541,19314.0,19313.0,0.00289031]
[1664667295422,0.25651541,19314.0,19313.0,0.07289031]
[1664667296457,0.25651541,19314.0,19313.0,0.00289031]
[1664667297406,0.25651541,19314.0,19313.0,0.07289031]
[1664667298515,0.25651541,19314.0,19313.0,0.00289031]
[1664667298984,0.12707641,19314.0,19313.0,0.00289031]
[1664667299250,0.12707641,19314.0,19313.0,0.07289031]
[1664667300607,0.12707641,19314.0,19313.0,0.00289031]
[1664667301250,0.12707641,19314.0,19313.0,0.07289031]
[1664667302015,0.12707641,19314.0,19313.0,0.90182581]
[1664667302016,0.000104,19314.0,19313.0,0.90182581]
[1664667302238,0.000104,19314.0,19313.0,1.25905781]
[1664667302473,0.000104,19314.0,19313.0,1.29016381]
[1664667302697,0.000104,19314.0,19313.0,1.57739581]
[1664667303239,0.000104,19314.0,19313.0,1.33819175]
[1664667303462,0.000104,19314.0,19313.0,1.65539581]
[1664667303702,0.000104,19314.0,19313.0,1.33819175]
[1664667303927,0.000104,19314.0,19313.0,1.65539581]
[1664667304124,0.000104,19314.0,19313.0,1.33819175]
[1664667304337,0.000104,19314.0,19313.0,0.98095975]
[1664667304577,0.000104,19314.0,19313.0,0.90295975]
[1664667304999,0.000104,19314.0,19313.0,1.00129975]
[1664667305307,0.000104,19314.0,19313.0,1.07929975]
[1664667306879,0.000104,19314.0,19313.0,1.00129975]
[1664667307078,0.000104,19314.0,19313.0,0.87185375]
[1664667307348,0.000104,19314.0,19313.0,0.94985375]
[1664667308338,0.000104,19314.0,19313.0,0.59262175]
[1664667308466,0.000104,19314.0,19313.0,0.87185375]
[1664667309333,0.000104,19314.0,19313.0,0.98787841]
[1664667309757,0.000104,19314.0,19313.0,0.63064641]
[1664667309957,0.000104,19314.0,19313.0,0.98787841]
[1664667310707,0.000104,19314.0,19313.0,0.90987841]
[1664667311379,0.000104,19314.0,19313.0,0.98787841]
[1664667311804,0.000104,19314.0,19313.0,1.43452847]
[1664667312249,0.000104,19314.0,19313.0,1.11732441]
[1664667312697,0.000104,19314.0,19313.0,1.29821641]
[1664667313326,0.000104,19314.0,19313.0,1.37621641]
[1664667313717,0.000104,19314.0,19313.0,1.69342047]
[1664667314441,0.000104,19314.0,19313.0,1.37621641]
[1664667314671,0.000104,19314.0,19313.0,1.69342047]
[1664667314882,0.000104,19314.0,19313.0,1.25818847]
[1664667315280,0.000104,19314.0,19313.0,1.69342047]
[1664667316668,0.000104,19314.0,19313.0,0.94098441]
[1664667316880,0.000104,19314.0,19313.0,1.66542047]
[1664667317016,0.000104,19314.0,19313.0,1.30818847]
[1664667317239,0.000104,19314.0,19313.0,1.74342047]
[1664667317457,0.000104,19314.0,19313.0,1.43618847]
[1664667317881,0.000104,19314.0,19313.0,1.79342047]
[1664667318553,0.000104,19314.0,19313.0,1.71542047]
[1664667319418,0.000104,19314.0,19313.0,1.79342047]
[1664667320125,0.000104,19314.0,19313.0,1.43618847]
[1664667320321,0.129428,19316.0,19313.0,1.43618847]
[1664667320322,0.129413,19318.0,19314.0,3.31e-06]
[1664667320452,0.129413,19318.0,19315.0,0.71657077]
[1664667320961,0.388241,19318.0,19315.0,0.84591077]
[1664667321138,0.388241,19318.0,19315.0,0.64107144]
[1664667321139,0.517728,19318.0,19315.0,0.64107144]
[1664667321351,0.179487,19318.0,19315.0,0.64107144]
[1664667321633,0.567733,19318.0,19315.0,0.64107144]
[1664667321865,0.567733,19318.0,19317.0,0.05]
[1664667322097,0.308902,19318.0,19316.0,0.41200546]
[1664667322334,0.05,19318.0,19317.0,0.05289031]
[1664667322582,0.517711,19319.0,19317.0,0.05]
[1664667323419,0.4403,19319.0,19317.0,0.05]
[1664667323708,0.129412,19318.0,19317.0,0.05]
[1664667323942,0.124412,19318.0,19316.0,0.41200546]
[1664667324147,0.253899,19318.0,19316.0,0.41200546]